Cogmind - Beta 13 @@@ ROGUE MODE // 2024.04.06 @ 23:27:57 Player: emory Result: Destroyed by G-34 Mercenary with Small Laser Performance ------------- Evolutions (0) 0 Regions Visited (1) 200 Robots Destroyed (5) 25 Value Destroyed (183) 183 Prototype IDs (0) 0 Alien Tech Used (0) 0 Bonus (0) 0 TOTAL SCORE: 408 Bonus ------- None Cogmind --------- Core Integrity 0/250 Matter 260/300 Energy 100/100 System Corruption 1% Temperature Cool (6) Movement Core (50) Location -10/Materials Parts ------- > --- POWER (1) -------- (None) > --- PROPULSION (2) --- (None) > --- UTILITY (2) ------ Sensor Array > --- WEAPON (2) ------- (None) > --- INVENTORY (5) ---- Ion Engine Light Treads Light Treads Aluminum Leg Huge Storage Unit Peak State ------------ > --- POWER ------------ Light Ion Engine > --- PROPULSION ------- Aluminum Leg Aluminum Leg > --- UTILITY ---------- Small Storage Unit > --- WEAPON ----------- Light Assault Rifle > --- INVENTORY -------- Ion Engine Light Treads Light Treads [Rating: 5] Favorites ----------- Power Light Ion Engine Engine Light Ion Engine Propulsion Aluminum Leg Treads Light Treads Leg Aluminum Leg Utility Small Storage Unit Device Sensor Array Storage Small Storage Unit Weapon Light Assault Rifle Ballistic Gun Light Assault Rifle Build | -11 -10 ------- Run | Yrd Mat Slots Evolved . | . . Power . | . . Propulsion . | . . Utility . | . . Weapon . | . . Parts Attached 10 | 5 5 Power 3 | 1 2 Engine 3 | 1 2 Core . | . . Reactor . | . . Propulsion 4 | 2 2 Treads 2 | . 2 Leg 2 | 2 . Wheel . | . . Hover . | . . Flight . | . . Utility 2 | 1 1 Device 1 | . 1 Storage 1 | 1 . Processor . | . . Hackware . | . . Protection . | . . Artifact . | . . Weapon 1 | 1 . Energy Gun . | . . Energy Cannon . | . . Ballistic Gun 1 | 1 . Ballistic Cannon . | . . Launcher . | . . Special Weapon . | . . Impact Weapon . | . . Slashing Weapon . | . . Piercing Weapon . | . . Special Melee Weapon . | . . Unidentified Prototypes . | . . Parts Lost 5 | . 5 Power 2 | . 2 Propulsion 2 | . 2 Utility . | . . Weapon 1 | . 1 Highest Loss Streak 2 | . 2 To Critical Strikes . | . . Average Slot Usage (%) 55 | . 55 Engine 10 | . 10 Leg 17 | . 17 Storage 13 | . 13 Ballistic Gun 12 | . 12 Naked Turns . | . . Heaviest Build 11 | 9 11 Greatest Support 40 | 20 40 Greatest Overweight (x) 3 | 2 3 Average Overweight (x) . | 1 . Largest Inventory Capacity 8 | 8 8 Average Capacity 7 | 7 7 Most Carried 7 | 6 7 Average Carried 5 | 3 5 Final Capacity 8 | 8 5 Final Carried 5 | 3 5 Class Distribution -------------------- 100% | Mutant Dominant Class ---------------- Mutant | -10/Materials Resources | -11 -10 ----------- Run | Yrd Mat Matter Collected 267 | 238 29 Remotely . | . . Salvage Created 208 | . 208 Parts 11 | . 11 Haulers Intercepted . | . . Recyclers Shooed . | . . Parts Field Recycled . | . . Retrieved Matter . | . . Parts Self-Destructed . | . . Prevented . | . . Kills | -11 -10 ------- Run | Yrd Mat Combat Hostiles Destroyed 5 | . 5 Guns 5 | . 5 Classes Destroyed 1 | . 1 Grunt 5 | . 5 Best Kill Streak 3 | . 3 Combat Bots Only 3 | . 3 Max Kills in Single Turn 1 | . 1 Gunslinging . | . . Exploded . | . . Melee . | . . Uniques/NPCs Destroyed . | . . Combat | -11 -10 -------- Run | Yrd Mat Hostile Shots Fired 70 | . 70 Missed 16 | . 16 Damage Taken 688 | . 688 Core 250 | . 250 Absorbed by Shields . | . . Core Remaining (%) 100 | 100 . Volleys Fired 32 | . 32 Largest 1 | . 1 Hottest 20 | . 20 Shots Fired 32 | . 32 Gun 32 | . 32 Cannon . | . . Launcher . | . . Special . | . . Kinetic 32 | . 32 Thermal . | . . Explosive . | . . Electromagnetic . | . . Robot Hit Streak 10 | . 10 Robot Miss Streak 1 | . 1 Penetration Max . | . . Secondary Targets . | . . Shots Hit Robots 28 | . 28 Core Hits 15 | . 15 Critical Kills . | . . Critical Parts Destroyed . | . . Critical Strikes . | . . Melee Attacks . | . . Impact . | . . Slashing . | . . Piercing . | . . Sneak Attacks . | . . Combat Hostiles . | . . Follow-up Attacks . | . . Damage Inflicted 231 | . 231 Guns 223 | . 223 Cannons . | . . Explosions . | . . Melee . | . . Ramming 8 | . 8 Kinetic 223 | . 223 Thermal . | . . Explosive . | . . Electromagnetic . | . . Impact . | . . Slashing . | . . Piercing . | . . Highest Corruption 1 | . 1 Average Corruption 1 | . 1 Corruption Purged . | . . Corruption Blocked . | . . Effects 4 | . 4 Message Errors 2 | . 2 Matter Fused 1 | . 1 Energy Discharges 1 | . 1 Overload Shots . | . . Overflow Damage . | . . Projectiles . | . . Explosions . | . . Melee . | . . Knockbacks . | . . Impact . | . . Kinetic . | . . Secondary . | . . Self-Inflicted Damage 1 | . 1 Shots . | . . Rammed 1 | . 1 Targets Rammed 5 | . 5 Kicked 4 | . 4 Crushed . | . . Highest Temperature 9 | . 9 Average Temperature 5 | . 5 Received Heat Transfer 396 | . 396 Siege Activations . | . . Robots Corrupted . | . . Combat Hostiles . | . . Parts Fried . | . . Impact Corruptions . | . . Robots Melted . | . . Combat Hostiles . | . . Parts Melted . | . . Heat Transferred . | . . Parts Sabotaged . | . . Parts Stolen . | . . Parts Stripped . | . . Power Chain Reactions . | . . Alert | -11 -10 ------- Run | Yrd Mat Peak Influence 181 | . 181 Initial . | . . Average 32 | . 35 Maximum Alert Level . | . . Low Security (%) 100 | 100 100 Level 1 . | . . Level 2 . | . . Level 3 . | . . Level 4 . | . . Level 5 . | . . High Security . | . . Max Security . | . . Squads Dispatched 2 | . 2 Investigation 1 | . 1 Extermination . | . . Reinforcement 1 | . 1 Assault . | . . Garrison . | . . Intercept . | . . Searches Triggered . | . . Construction Impeded . | . . Haulers Reinforced . | . . Active Scanning Responses . | . . Cargo Convoy Interrupts . | . . Stealth | -11 -10 --------- Run | Yrd Mat Distress Signals . | . . Communications Jammed . | . . Distress Signals . | . . Times Spotted 16 | . 16 Peak Tracking Total 6 | . 6 Tactical Retreats 1 | . 1 Traps | -11 -10 ------- Run | Yrd Mat Traps Triggered . | . . Indirectly . | . . Trap Hack Attempts . | . . Triggered . | . . Disarmed . | . . Reprogrammed . | . . Reused . | . . Traps Extracted . | . . Installed . | . . Triggered . | . . Machines | -11 -10 ---------- Run | Yrd Mat Machines Disabled . | . . Max in Single Turn . | . . Machines Repaired . | . . Machines Dismantled . | . . Machines Sabotaged . | . . Overloaded Fab Kills . | . . Hacking | -11 -10 --------- Run | Yrd Mat Machines Accessed 3 | . 3 Terminals 3 | . 3 Fabricators . | . . Repair Stations . | . . Recycling Units . | . . Scanalyzers . | . . Garrison Access . | . . Total Hacks 10 | . 10 Successful 4 | . 4 Failed 6 | . 6 Catastrophic 1 | . 1 Database Lockouts . | . . Manual . | . . Terminals 10 | . 10 Fabricators . | . . Repair Stations . | . . Recycling Units . | . . Scanalyzers . | . . Garrison Access . | . . Terminal Hacks 4 | . 4 Robot Analysis 1 | . 1 Locate Traps 1 | . 1 Reinforcement Status 1 | . 1 Recall Investigation 1 | . 1 Fabricator Hacks . | . . Repair Station Hacks . | . . Recycling Unit Hacks . | . . Scanalyzer . | . . Garrison Access Hacks . | . . Unauthorized Hacks . | . . Terminals . | . . Fabricators . | . . Repair Stations . | . . Recycling Units . | . . Scanalyzers . | . . Garrison Access . | . . Data Cores Recovered . | . . Used . | . . Hacking Detections 2 | . 2 Full Trace Events 2 | . 2 Feedback Events 1 | . 1 Corruption 1 | . 1 Feedback Blocked . | . . Robot Schematics Acquired . | . . Robots Built . | . . Authchips . | . . Time . | . . Total Robot Build Rating . | . . Part Schematics Acquired . | . . Parts Built . | . . Authchips . | . . Time . | . . Total Part Build Rating . | . . Parts Repaired . | . . Time . | . . Parts Recycled . | . . Recycled Matter . | . . Retrieved Matter . | . . Retrieved Components . | . . Parts Scanalyzed . | . . Part Schematics Acquired . | . . Parts Damaged . | . . Bothacking | -11 -10 ------------ Run | Yrd Mat Used RIF Installer . | . . Robots Hacked . | . . Non-combat . | . . Combat . | . . Robot Hacks Applied . | . . Relay Couplers Released . | . . Fabnet Peak Effective % . | . . Robots Rewired . | . . Allies Hacked . | . . Hacks Repelled . | . . Allies | -11 -10 -------- Run | Yrd Mat Total Allies . | . . Largest Group . | . . Highest-Rated Group . | . . Highest-Rated Ally . | . . Total Orders . | . . Ally Attacks . | . . Total Damage . | . . Kills . | . . Allies Corrupted . | . . Allies Melted . | . . Intel | -11 -10 ------- Run | Yrd Mat Robot Analysis Total 1 | . 1 Derelict Logs Recovered . | . . Drone Launches . | . . Drone Recoveries . | . . Exploration | -11 -10 ------------- Run | Yrd Mat Turns Passed 640 | 62 578 Spaces Moved 381 | 36 345 Core 129 | 33 96 Treads 6 | . 6 Legs 246 | 3 243 Wheels . | . . Hover . | . . Flight . | . . Fastest Speed 50 | 50 100 Average Speed 140 | 137 140 Slowest Speed 200 | 150 200 Overloaded Moves . | . . Propulsion Burnouts . | . . Robots Hopped . | . . Cave-ins Triggered . | . . Exploration Rate (%) 26 | 4 48 Regions Visited 1 Branch Regions . Pre-discovered Areas . | . . Known Exits Taken . | . . Unknown Exits Taken 1 | 1 . Scrap Searched . | . . Spaces Dug . | . . Terrain Destroyed . | . . Melee . | . . Projectile . | . . AOE . | . . Terrain Rammed . | . . Walls Destroyed . | . . Machines Disabled . | . . Actions | -11 -10 --------- Run | Yrd Mat Total 462 | 48 414 Wait 19 | . 19 Move 380 | 35 345 Hop . | . . Pick Up 12 | 8 4 Fast Attach . | . . Attach 10 | 5 5 Detach 3 | . 3 Swap . | . . Drop 1 | . 1 Fire 32 | . 32 Melee . | . . Ram 1 | . 1 Kick 4 | . 4 Crush . | . . Escape Stasis . | . . Rewire . | . . Trap . | . . Miscellaneous . | . . Route ------- -11/Scrapyard -10/Materials (discovered 1 exit: [*Min]) History --------- Turn | Location | Event 16 | -11/Scrapyard | Discovered new exit (range 15) 63 | -11/Scrapyard | Entered Materials 190 | -10/Materials | Discovered new exit (range 16) 308 | -10/Materials | Build established: Mutant 429 | -10/Materials | Core integrity fell below 50% 621 | -10/Materials | Core integrity fell below 20% 641 | -10/Materials | Destroyed by G-34 Mercenary with Small Laser Last Messages --------------- 00418_ K-01 Serf collects debris. 00419_ System corrupted: Energy discharge (-27). 00422_ Aluminum Leg destroyed. 00422_ K-01 Serf collects debris. 00422_ G-34 Mercenary destroyed. 00425_ K-01 Serf collects debris. 00426_ Aluminum Leg destroyed. 00429_ G-34 Mercenary destroyed. 00438_ Acquired 7 matter. 00440_ Terminal unresponsive. 00443_ Acquired Ion Engine. 00445_ Acquired 10 matter. 00450_ K-01 Serf collects debris. 00503_ K-01 Serf cleans the Nuclear Reactor. 00594_ U-05 Engineer destroyed. 00595_ Lgt. Assault Rifle destroyed. 00598_ System corrupted: Matter fused (-7). 00619_ Ion Engine destroyed. 00636_ Dropped Sml. Storage Unit. 00639_ Slammed into G-34 Mercenary. Map ----- +----------------------------------------------------+ | | | | | | | | | | | | | | | ?????????????????????????????????????????????? | | ?????????????????????????????????????????????? | | ?????????????????????????????????????????????? | | ?????????????????????????????????????????????? | | ?????????????????????????????????????????????? | | ?????????????????????????????????????????????? | | ?????????????????????????????????????????????? | | ?????????????????????????????????????????????? | | ?????????????????###########???????????????? | | ?????????????????# #??????????????? | | ?????????????????# !!! #???????????????? | | ?????????????????# !!! #???????????????? | | ?????????????????# !!! #???????????????? | | ?????????????????# #???????????????? | | ?????????????????# #??????########### | | ?????????????????# #?????? | | ???????????# ????# ! ! #??????? | | ???????????# #######g#####????????? | | ???????????+ @g #########????# | | ???????????# t + ?????# | | ???????????# # """""????# | | ???????????# ##+### g# """""????# | | ???????????# ??# ???# # """""#???# "T" | | ???????????????#????# t/ """""#???# | | ????????????????????# # """""#???# | | ????????????????????# # """""#???# #### | | ????????????????????# # = """""#???# #??? | | ????????????????????# # #???# #??? | | ????????????????????# ####w###+#???#! #??? | | ????????????????????# #??# ### #####%= #??? | | ????????????????????# #??# * #??? | | ????????????????????# #??? | | ????????????????????# t #??? | | ????????????????????# #??? | | ????????????????????# #??? | | ????????????????????# #??? | | ????????????????????# ###########??? | | ????????????????????? #????????????? | | ????????????????????? #????????????? | | ?????????????????????? #????????????? | | ?????????????????????? #????????????? | | ??????????????????????? #????????????? | | ????????????????????????? ?????????????? | +----------------------------------------------------+ Best States ------------- Heat Dissipation 25 Energy Generation 10 Energy Capacity 250 Matter Stores 300 Matter Capacity 300 Sight Range 16 Robot Scan Range 14 Terrain Scan Density 10 Evasion (%) 55 Recoil Reduction 2 Item Schematics ----------------- None Robot Schematics ------------------ None Fabricated ------------ Nothing Alien Tech Used ----------------- None Achievements -------------- None Challenges ------------ None Game ------ Seed MetaSpikedSuite Manual? 0 Play Time 00:10:45 Cumulative 15.0 hours Start 2024.04.06 @ 23:08:28 End 2024.04.06 @ 23:27:57 Sessions 1 Manual Loads 0 Difficulty Rogue Special Mode None Game No. 26 Rogue 26 Adventurer 0 Explorer 0 Win Type - Total 0 Types 0/0/0/0/0/0/0/0/0 Lore% 18 Gallery% 16 Achievement% 17 Wizard Run 0 Options --------- Layout 1 ASCII 1 Keyboard 0 Movement Vi Keybinds 0 Fullscreen 1 Font 16/SmallcapsGlow Map View 50x35 Zoom Use 0% Tactical HUD 1 Map Filters NONE Filters NONE Steam SD RUN: 4e80e7b9-7452-46e1-960f-3b38b5565e9e